fUST/lending_fUST_20250709
["ID","MTS","AMOUNT","RATE_DAILY","PERIOD"]
[370467241,1752031841616,-460.0,0.00019452,2]
[370467242,1752031841625,-507.42,0.00019452,2]
[370467243,1752031841635,-460.0,0.00019452,2]
[370467244,1752031841645,-460.0,0.00019452,2]
[370467245,1752031841655,-460.0,0.00019452,2]
[370467246,1752031841665,-1974.19,0.00019452,2]
[370467247,1752031841675,-460.0,0.00019452,2]
[370467248,1752031841685,-548.60782559,0.00019452,2]
[370467249,1752031841695,-460.0,0.00019452,2]
[370467250,1752031841705,-460.0,0.00019452,2]
[370467251,1752031841715,-460.0,0.00019452,2]
[370467252,1752031841725,-460.0,0.00019452,2]
[370467253,1752031841748,-462.46670277,0.00019452,2]
[370467254,1752031841758,-460.0,0.00019452,2]
[370467255,1752031841769,-460.0,0.00019452,2]
[370467256,1752031841780,-482.38,0.00019452,2]
[370467257,1752031841790,-500.59,0.00019452,2]
[370467258,1752031841800,-460.0,0.00019452,2]
[370467259,1752031841811,-460.0,0.00019452,2]
[370467260,1752031841821,-745.34,0.00019452,2]
[370467261,1752031841831,-460.0,0.00019452,2]
[370467262,1752031841842,-813.63,0.00019452,2]
[370467263,1752031841853,-460.0,0.00019452,2]
[370467264,1752031841863,-460.0,0.00019452,2]
[370467265,1752031841873,-460.0,0.00019452,2]
[370467266,1752031841883,-460.0,0.00019452,2]
[370467267,1752031841893,-2593.76,0.00019452,2]
[370467268,1752031841904,-1064.35,0.00019452,2]
[370467269,1752031841915,-327.71838445,0.00019452,2]
[370467270,1752031841925,-460.0,0.00019452,2]
[370467271,1752031841935,-296.34266754,0.00019452,2]
[370467272,1752031841945,-460.0,0.00019452,2]
[370467273,1752031841955,-460.0,0.00019452,2]
[370467274,1752031841965,-460.0,0.00019452,2]
[370467275,1752031841975,-460.0,0.00019452,2]
[370467276,1752031841989,-460.0,0.00019452,2]
[370467277,1752031842000,-460.0,0.00019452,2]
[370467278,1752031842010,-460.0,0.00019452,2]
[370467279,1752031842021,-829.82,0.00019452,2]
[370467280,1752031842031,-460.0,0.00019452,2]
[370467281,1752031842040,-546.59,0.00019452,2]
[370467282,1752031842052,-2869.71,0.00019452,2]
[370467283,1752031842062,-750.27,0.00019452,2]
[370467284,1752031842073,-460.0,0.00019452,2]
[370467285,1752031842084,-460.0,0.00019452,2]
[370467286,1752031842095,-460.0,0.00019452,2]
[370467287,1752031842104,-460.0,0.00019452,2]
[370467288,1752031842115,-943.82,0.00019452,2]
[370467289,1752031842125,-460.0,0.00019452,2]
[370467290,1752031842134,-460.0,0.00019452,2]
[370467291,1752031842146,-470.68905098,0.00019452,2]
[370467292,1752031842155,-460.0,0.00019452,2]
[370467293,1752031842165,-460.0,0.00019452,2]
[370467294,1752031842174,-460.0,0.00019452,2]
[370467295,1752031842183,-460.0,0.00019452,2]
[370467296,1752031842193,-462.856168,0.00019452,2]
[370467297,1752031842202,-460.0,0.00019452,2]
[370467298,1752031842212,-460.0,0.00019452,2]
[370467299,1752031842221,-460.0,0.00019452,2]
[370467300,1752031842231,-465.87882745,0.00019452,2]
[370467301,1752031842240,-151.0,0.00019507,2]
[370467302,1752031842249,-151.0,0.00019507,2]
[370467303,1752031842259,-151.0,0.00019507,2]
[370467304,1752031842268,-202.03352032,0.00019507,2]
[370467305,1752031842279,-151.0,0.00019507,2]
[370467306,1752031842290,-151.22157252,0.00019507,2]
[370467307,1752031842301,-151.60978335,0.00019507,2]
[370467308,1752031842313,-151.0,0.00019507,2]
[370467309,1752031842323,-157.75257912,0.00019507,2]
[370467310,1752031842333,-500.0,0.00019507,2]
[370467311,1752031842343,-151.0,0.00019507,2]
[370467312,1752031842358,-500.0,0.00019533,2]
[370467313,1752031842368,-500.0,0.00019533,2]
[370467314,1752031842378,-500.0,0.00019533,2]
[370467315,1752031842389,-500.0,0.00019533,2]
[370467316,1752031842400,-500.0,0.00019533,2]
[370467317,1752031842411,-500.0,0.00019533,2]
[370467318,1752031842422,-500.0,0.00019533,2]
[370467319,1752031842434,-500.0,0.00019533,2]
[370467320,1752031842444,-500.0,0.00019533,2]
[370467321,1752031842454,-500.0,0.00019533,2]
[370467322,1752031842465,-500.0,0.00019533,2]
[370467323,1752031842476,-500.0,0.00019533,2]
[370467324,1752031842486,-500.0,0.00019533,2]
[370467325,1752031842497,-500.0,0.00019533,2]
[370467326,1752031842508,-151.0,0.00019534,2]
[370467327,1752031842518,-151.0,0.00019534,2]
[370467328,1752031842529,-151.0,0.00019534,2]
[370467329,1752031842539,-151.0,0.00019534,2]
[370467330,1752031842550,-151.0,0.00019534,2]
[370467331,1752031842560,-516.28207302,0.00019534,2]
[370467333,1752031842572,-151.0,0.00019562,2]
[370467335,1752031842583,-198.54104326,0.00019562,2]
[370467337,1752031842597,-247.62234683,0.00019562,2]
[370467341,1752031842608,-281.90042341,0.00019562,2]
[370467343,1752031842618,-151.0,0.00019562,2]
[370467345,1752031842627,-198.48264762,0.00019589,2]
[370467346,1752031842637,-256.78734587,0.00019589,2]
[370467347,1752031842647,-470.69813594,0.00019726,2]
[370467348,1752031842656,-460.0,0.00019726,2]
[370467349,1752031842666,-460.0,0.00019726,2]
[370467350,1752031842676,-460.0,0.00019726,2]
[370467351,1752031842689,-460.0,0.00019726,2]
[370467352,1752031842701,-460.0,0.00019726,2]
[370467353,1752031842711,-460.0,0.00019726,2]
[370467355,1752031842722,-460.0,0.00019726,2]
[370467356,1752031842732,-471.40516269,0.00019726,2]
[370467358,1752031842743,-460.0,0.00019726,2]
[370467359,1752031842753,-417.35877617,0.00019726,2]
[370467361,1752031842763,-554.79466765,0.00019726,2]
[370467362,1752031842773,-506.74,0.00019726,2]
[370467363,1752031842783,-460.0,0.00019726,2]
[370467365,1752031842793,-460.0,0.00019726,2]
[370467366,1752031842802,-408.40729688,0.00019726,2]
[370467369,1752031842813,-460.0,0.00019726,2]
[370467370,1752031842824,-409.15441627,0.00019726,2]
[370467373,1752031842836,-469.57996515,0.00019726,2]
[370467375,1752031842846,-460.0,0.00019726,2]
[370467377,1752031842855,-460.0,0.00019726,2]
[370467378,1752031842865,-269.95,0.00019726,2]
[370467380,1752031842875,-460.0,0.00019726,2]
[370467381,1752031842886,-460.0,0.00019726,2]
[370467383,1752031842895,-460.0,0.00019726,2]
[370467385,1752031842905,-698.68,0.00019726,2]
[370467387,1752031842914,-460.0,0.00019726,2]
[370467388,1752031842924,-460.0,0.00019726,2]
[370467389,1752031842934,-467.95227676,0.00019726,2]
[370467390,1752031842944,-460.0,0.00019726,2]
[370467391,1752031842954,-460.0,0.00019726,2]
[370467392,1752031842964,-729.57,0.00019726,2]
[370467394,1752031842976,-435.33479534,0.00019726,2]
[370467395,1752031842989,-475.25506201,0.00019726,2]
[370467396,1752031842998,-460.0,0.00019726,2]
[370467397,1752031843007,-460.0,0.00019726,2]
[370467398,1752031843017,-478.43271616,0.00019726,2]
[370467399,1752031843029,-800.18,0.00019726,2]
[370467400,1752031843039,-2192.26,0.00019726,2]
[370467401,1752031843050,-820.58,0.00019726,2]
[370467402,1752031843060,-460.0,0.00019726,2]
[370467403,1752031843070,-1350.23,0.00019726,2]
[370467404,1752031843079,-460.0,0.00019726,2]
[370467405,1752031843089,-460.0,0.00019726,2]
[370467406,1752031843098,-460.0,0.00019726,2]
[370467407,1752031843109,-460.0,0.00019726,2]
[370467409,1752031843118,-460.0,0.00019726,2]
[370467411,1752031843129,-665.45,0.00019726,2]
[370467424,1752031843303,-460.0,0.00019726,2]
[370467426,1752031843314,-460.0,0.00019726,2]
[370467428,1752031843324,-552.95,0.00019726,2]
[370467430,1752031843334,-661.99,0.00019726,2]
[370467432,1752031843343,-552.93,0.00019726,2]
[370467434,1752031843353,-460.0,0.00019726,2]
[370467436,1752031843362,-460.0,0.00019726,2]
[370467438,1752031843371,-460.0,0.00019726,2]
[370467439,1752031843381,-460.0,0.00019726,2]
[370467442,1752031843392,-460.0,0.00019726,2]
[370467444,1752031843401,-460.0,0.00019726,2]
[370467446,1752031843411,-460.0,0.00019726,2]
[370467447,1752031843421,-460.0,0.00019726,2]
[370467448,1752031843430,-1397.17,0.00019726,2]
[370467449,1752031843440,-1468.45,0.00019726,2]
[370467450,1752031843449,-460.0,0.00019726,2]
[370467451,1752031843459,-1275.68,0.00019726,2]
[370467452,1752031843469,-460.0,0.00019726,2]
[370467453,1752031843478,-507.42,0.00019726,2]
[370467454,1752031843488,-468.92089986,0.00019726,2]
[370467455,1752031843497,-460.0,0.00019726,2]
[370467456,1752031843506,-466.96522979,0.00019726,2]
[370467457,1752031843516,-1974.19,0.00019726,2]
[370467458,1752031843525,-460.0,0.00019726,2]
[370467459,1752031843535,-460.0,0.00019726,2]
[370467460,1752031843545,-460.0,0.00019726,2]
[370467461,1752031843554,-460.0,0.00019726,2]
[370467462,1752031843565,-460.0,0.00019726,2]
[370467463,1752031843575,-460.0,0.00019726,2]
[370467464,1752031843586,-460.0,0.00019726,2]
[370467465,1752031843596,-482.38,0.00019726,2]
[370467466,1752031843605,-500.59,0.00019726,2]
[370467467,1752031843615,-460.0,0.00019726,2]
[370467468,1752031843625,-460.0,0.00019726,2]
[370467469,1752031843634,-745.34,0.00019726,2]
[370467470,1752031843644,-460.0,0.00019726,2]
[370467471,1752031843653,-813.63,0.00019726,2]
[370467472,1752031843663,-467.99936835,0.00019726,2]
[370467473,1752031843673,-460.0,0.00019726,2]
[370467474,1752031843683,-460.0,0.00019726,2]
[370467475,1752031843693,-468.77464405,0.00019726,2]
[370467476,1752031843702,-2593.76,0.00019726,2]
[370467477,1752031843711,-1064.35,0.00019726,2]
[370467478,1752031843721,-460.0,0.00019726,2]
[370467479,1752031843731,-460.0,0.00019726,2]
[370467480,1752031843741,-460.0,0.00019726,2]
[370467481,1752031843750,-460.0,0.00019726,2]
[370467482,1752031843761,-460.0,0.00019726,2]
[370467483,1752031843771,-460.0,0.00019726,2]
[370467484,1752031843780,-460.0,0.00019726,2]
[370467485,1752031843789,-460.0,0.00019726,2]
[370467486,1752031843799,-829.82,0.00019726,2]
[370467487,1752031843809,-460.0,0.00019726,2]
[370467488,1752031843832,-2869.71,0.00019726,2]
[370467489,1752031843843,-546.59,0.00019726,2]
[370467490,1752031843853,-750.27,0.00019726,2]
[370467491,1752031843863,-460.0,0.00019726,2]
[370467492,1752031843873,-470.24643165,0.00019726,2]
[370467493,1752031843884,-460.0,0.00019726,2]
[370467494,1752031843893,-175.40834771,0.00019726,2]
[370467495,1752031843904,-943.82,0.00019726,2]
[370467496,1752031843913,-460.0,0.00019726,2]
[370467497,1752031843924,-460.0,0.00019726,2]
[370467498,1752031843934,-246.46944018,0.00019726,2]
[370467499,1752031843944,-472.26780812,0.00019726,2]
[370467500,1752031843954,-471.63676369,0.00019726,2]
[370467501,1752031843963,-460.0,0.00019726,2]
[370467502,1752031843975,-460.0,0.00019726,2]
[370467503,1752031843988,-207.4,0.00019799,2]
[370467504,1752031843998,-690.642,0.00019799,2]
[370467505,1752031844009,-300.0,0.00019799,2]
[370467506,1752031844019,-300.0,0.00019799,2]
[370467507,1752031844030,-300.0,0.00019799,2]
[370467508,1752031844040,-300.0,0.00019799,2]
[370467509,1752031844050,-300.0,0.00019799,2]
[370467510,1752031844061,-374.97288028,0.00019799,2]
[370467511,1752031844071,-300.0,0.00019799,2]
[370467512,1752031844081,-330.12308961,0.00019799,2]
[370467513,1752031844092,-25000.0,0.00019799,2]
[370467514,1752031844101,-22827.66514179,0.00019799,2]
[370467515,1752031844112,-226.20521233,0.00019821,2]
[370467516,1752031844122,-150.36452721,0.00019821,2]
[370467517,1752031844131,-500.0,0.00019821,2]
[370467518,1752031844141,-500.80920247,0.00019821,2]
[370467519,1752031844151,-500.0,0.00019835,2]
[370467520,1752031844162,-716.195754,0.00019854,2]
[370467521,1752031844172,-10590.82092626,0.00019888,2]
[370467522,1752031844183,-4533.15035317,0.000199,2]
[370467523,1752031844193,-742.6949969,0.00019909,2]
[370467524,1752031844202,-770.17471178,0.00019964,2]
[370467525,1752031844212,-501.14716224,0.00019973,2]
[370467526,1752031844223,-500.0,0.00019973,2]
[370467527,1752031844232,-503.5289748,0.00019973,2]
[370467528,1752031844244,-500.0,0.00019973,2]
[370467529,1752031844254,-500.0,0.00019973,2]
[370467530,1752031844264,-501.29073386,0.00019973,2]
[370467531,1752031844275,-500.0,0.00019973,2]
[370467532,1752031844284,-500.0,0.00019973,2]
[370467533,1752031844294,-500.0,0.00019973,2]
[370467534,1752031844304,-500.0,0.00019973,2]
[370467535,1752031844314,-491.97369834,0.00019973,2]
[370467536,1752031844324,-96726.43260604,0.0001999,2]
[370467537,1752031844334,-100139.0,0.0002,2]
[370467538,1752031844344,-460.0,0.0002,2]
[370467539,1752031844354,-460.0,0.0002,2]
[370467540,1752031844364,-475.08973069,0.0002,2]
[370467541,1752031844374,-460.0,0.0002,2]
[370467542,1752031844384,-460.0,0.0002,2]
[370467543,1752031844395,-460.0,0.0002,2]
[370467544,1752031844407,-460.0,0.0002,2]
[370467545,1752031844418,-460.0,0.0002,2]
[370467546,1752031844433,-506.74,0.0002,2]
[370467547,1752031844443,-460.0,0.0002,2]
[370467548,1752031844453,-460.0,0.0002,2]
[370467549,1752031844464,-460.0,0.0002,2]
[370467550,1752031844474,-460.0,0.0002,2]
[370467551,1752031844486,-460.0,0.0002,2]
[370467552,1752031844495,-460.0,0.0002,2]
[370467553,1752031844506,-460.0,0.0002,2]
[370467554,1752031844517,-460.0,0.0002,2]
[370467555,1752031844528,-698.68,0.0002,2]
[370467556,1752031844538,-460.0,0.0002,2]
[370467557,1752031844548,-460.0,0.0002,2]
[370467558,1752031844558,-460.0,0.0002,2]
[370467559,1752031844569,-460.0,0.0002,2]
[370467560,1752031844579,-729.57,0.0002,2]
[370467561,1752031844591,-460.0,0.0002,2]
[370467562,1752031844602,-469.31905196,0.0002,2]
[370467563,1752031844612,-800.18,0.0002,2]
[370467564,1752031844621,-2192.26,0.0002,2]
[370467565,1752031844631,-820.58,0.0002,2]
[370467566,1752031844641,-460.0,0.0002,2]
[370467567,1752031844651,-1350.23,0.0002,2]
[370467568,1752031844661,-460.0,0.0002,2]
[370467569,1752031844671,-460.0,0.0002,2]
[370467570,1752031844681,-460.0,0.0002,2]
[370467571,1752031844691,-460.0,0.0002,2]
[370467572,1752031844702,-665.45,0.0002,2]
[370467573,1752031844712,-460.0,0.0002,2]
[370467574,1752031844722,-460.0,0.0002,2]
[370467575,1752031844733,-552.95,0.0002,2]
[370467576,1752031844744,-661.99,0.0002,2]
[370467577,1752031844754,-552.93,0.0002,2]
[370467578,1752031844764,-471.0825182,0.0002,2]
[370467579,1752031844774,-460.0,0.0002,2]
[370467580,1752031844784,-460.0,0.0002,2]
[370467581,1752031844795,-467.75963039,0.0002,2]
[370467582,1752031844805,-460.0,0.0002,2]
[370467583,1752031844814,-460.0,0.0002,2]
[370467584,1752031844825,-460.0,0.0002,2]
[370467585,1752031844835,-460.0,0.0002,2]
[370467586,1752031844848,-1397.17,0.0002,2]
[370467587,1752031844857,-1468.45,0.0002,2]
[370467588,1752031844867,-460.0,0.0002,2]
[370467589,1752031844877,-1275.68,0.0002,2]
[370467590,1752031844887,-464.80948341,0.0002,2]
[370467591,1752031844897,-507.42,0.0002,2]
[370467592,1752031844907,-471.48209091,0.0002,2]
[370467593,1752031844917,-1974.19,0.0002,2]
[370467594,1752031844927,-460.0,0.0002,2]
[370467595,1752031844937,-460.0,0.0002,2]
[370467596,1752031844947,-460.0,0.0002,2]
[370467597,1752031844957,-460.0,0.0002,2]
[370467598,1752031844969,-460.0,0.0002,2]
[370467599,1752031844978,-460.0,0.0002,2]
[370467600,1752031844992,-460.0,0.0002,2]
[370467601,1752031845002,-482.38,0.0002,2]
[370467602,1752031845012,-500.59,0.0002,2]
[370467603,1752031845023,-460.0,0.0002,2]
[370467604,1752031845033,-460.0,0.0002,2]
[370467605,1752031845044,-745.34,0.0002,2]
[370467606,1752031845055,-813.63,0.0002,2]
[370467607,1752031845065,-460.0,0.0002,2]
[370467608,1752031845074,-460.0,0.0002,2]
[370467609,1752031845085,-2593.76,0.0002,2]
[370467610,1752031845095,-1064.35,0.0002,2]
[370467611,1752031845105,-460.0,0.0002,2]
[370467612,1752031845115,-473.73288199,0.0002,2]
[370467613,1752031845126,-460.0,0.0002,2]
[370467614,1752031845136,-460.0,0.0002,2]
[370467615,1752031845146,-460.0,0.0002,2]
[370467616,1752031845156,-460.0,0.0002,2]
[370467617,1752031845165,-473.07851239,0.0002,2]
[370467618,1752031845175,-829.82,0.0002,2]
[370467619,1752031845184,-547.31580831,0.0002,2]
[370467620,1752031845195,-546.59,0.0002,2]
[370467621,1752031845205,-2869.71,0.0002,2]
[370467622,1752031845215,-750.27,0.0002,2]
[370467623,1752031845226,-460.0,0.0002,2]
[370467624,1752031845236,-151.0,0.0002,2]
[370467625,1752031845247,-460.0,0.0002,2]
[370467626,1752031845256,-943.82,0.0002,2]
[370467627,1752031845266,-460.0,0.0002,2]
[370467628,1752031845275,-470.6693537,0.0002,2]
[370467629,1752031845284,-460.0,0.0002,2]
[370467630,1752031845294,-460.0,0.0002,2]
[370467631,1752031845307,-300.0,0.00020007,2]
[370467632,1752031845319,-798.67117612,0.00020019,2]
[370467633,1752031845330,-960.99548709,0.00020074,2]
[370467634,1752031845341,-160.0,0.00020095,2]
[370467635,1752031845350,-160.0,0.00020095,2]
[370467636,1752031845360,-160.0,0.00020095,2]
[370467637,1752031845370,-160.0,0.00020095,2]
[370467638,1752031845379,-837.99933892,0.00020095,2]
[370467639,1752031845390,-214.14293035,0.00020095,2]
[370467640,1752031845401,-12589.12013084,0.00020095,2]
[370467641,1752031845411,-230.53906051,0.00020095,2]
[370467642,1752031845422,-160.0,0.00020095,2]
[370467643,1752031845432,-848.55005627,0.00020095,2]
[370467644,1752031845443,-215.27775528,0.00020095,2]
[370467645,1752031845452,-4533.15035302,0.00020107,2]
[370467646,1752031845462,-426.978016,0.00020187,2]
[370467647,1752031845471,-460.0,0.00020273,2]
[370467649,1752031845480,-460.0,0.00020273,2]
[370467650,1752031845490,-191.90155478,0.00020273,2]
[370467651,1752031845503,-460.0,0.00020273,2]
[370467652,1752031845516,-460.0,0.00020273,2]
[370467653,1752031845527,-460.0,0.00020273,2]
[370467654,1752031845539,-460.0,0.00020273,2]
[370467655,1752031845549,-460.0,0.00020273,2]
[370467656,1752031845559,-506.74,0.00020273,2]
[370467657,1752031845570,-460.0,0.00020273,2]
[370467658,1752031845580,-460.0,0.00020273,2]
[370467659,1752031845590,-460.0,0.00020273,2]
[370467660,1752031845601,-460.0,0.00020273,2]
[370467661,1752031845611,-460.0,0.00020273,2]
[370467662,1752031845622,-460.0,0.00020273,2]
[370467663,1752031845633,-460.0,0.00020273,2]
[370467664,1752031845643,-698.68,0.00020273,2]
[370467665,1752031845653,-460.0,0.00020273,2]
[370467666,1752031845663,-460.0,0.00020273,2]
[370467667,1752031845673,-460.0,0.00020273,2]
[370467668,1752031845683,-729.57,0.00020273,2]
[370467669,1752031845693,-460.0,0.00020273,2]
[370467670,1752031845703,-800.18,0.00020273,2]
[370467671,1752031845713,-2192.26,0.00020273,2]
[370467672,1752031845723,-820.58,0.00020273,2]
[370467673,1752031845733,-1350.23,0.00020273,2]
[370467674,1752031845744,-460.0,0.00020273,2]
[370467675,1752031845764,-460.0,0.00020273,2]
[370467676,1752031845774,-460.0,0.00020273,2]
[370467677,1752031845783,-460.0,0.00020273,2]
[370467678,1752031845793,-665.45,0.00020273,2]
[370467680,1752031845802,-552.95,0.00020273,2]
[370467681,1752031845812,-661.99,0.00020273,2]
[370467682,1752031845823,-460.0,0.00020273,2]
[370467683,1752031845833,-552.93,0.00020273,2]
[370467684,1752031845844,-460.0,0.00020273,2]
[370467686,1752031845854,-460.0,0.00020273,2]
[370467687,1752031845863,-513.41487301,0.00020273,2]
[370467689,1752031845872,-460.0,0.00020273,2]
[370467690,1752031845882,-1397.17,0.00020273,2]
[370467691,1752031845893,-1468.45,0.00020273,2]
[370467692,1752031845903,-460.0,0.00020273,2]
[370467693,1752031845912,-1275.68,0.00020273,2]
[370467694,1752031845922,-507.42,0.00020273,2]
[370467695,1752031845932,-1974.19,0.00020273,2]
[370467696,1752031845942,-460.0,0.00020273,2]
[370467697,1752031845953,-297.89662517,0.00020273,2]
[370467698,1752031845963,-264.43,0.00020273,2]
[370467699,1752031845975,-460.0,0.00020273,2]
[370467700,1752031845990,-460.0,0.00020273,2]
[370467701,1752031846000,-460.0,0.00020273,2]
[370467702,1752031846152,-482.38,0.00020273,2]
[370467703,1752031846163,-500.59,0.00020273,2]
[370467704,1752031846173,-460.0,0.00020273,2]
[370467705,1752031846183,-460.0,0.00020273,2]
[370467706,1752031846193,-745.34,0.00020273,2]
[370467707,1752031846203,-813.63,0.00020273,2]
[370467708,1752031846213,-2593.76,0.00020273,2]
[370467710,1752031846223,-1064.35,0.00020273,2]
[370467711,1752031846233,-460.0,0.00020273,2]
[370467712,1752031846243,-250.5099498,0.00020273,2]
[370467713,1752031846252,-460.0,0.00020273,2]
[370467714,1752031846262,-460.0,0.00020273,2]
[370467715,1752031846272,-460.0,0.00020273,2]
[370467716,1752031846281,-829.82,0.00020273,2]
[370467717,1752031846291,-2869.71,0.00020273,2]
[370467718,1752031846301,-546.59,0.00020273,2]
[370467719,1752031846310,-750.27,0.00020273,2]
[370467720,1752031846320,-460.0,0.00020273,2]
[370467721,1752031846329,-563.78977974,0.00020273,2]
[370467722,1752031846351,-943.82,0.00020273,2]
[370467723,1752031846363,-460.0,0.00020273,2]
[370467724,1752031846373,-4533.15035302,0.00020314,3]
[370467725,1752031846386,-429.891733,0.00020453,2]
[370467726,1752031846397,-795.2989833,0.00020521,2]
[370467727,1752031846407,-428.6820723,0.00020521,2]
[370467728,1752031846418,-428.6820723,0.00020521,2]
[370467729,1752031846429,-428.6820723,0.00020521,2]
[370467730,1752031846440,-1005.96527619,0.00020521,2]
[370467731,1752031846451,-315.50837465,0.00020521,2]
[370467732,1752031846461,-1000.0,0.00020521,2]
[370467733,1752031846471,-1001.49912669,0.00020521,2]
[370467734,1752031846481,-1008.20759223,0.00020521,2]
[370467735,1752031846491,-1000.0,0.00020521,2]
[370467736,1752031846502,-1000.0,0.00020521,2]
[370467737,1752031846513,-4533.15035302,0.00020521,3]
[370467738,1752031846522,-460.0,0.00020547,2]
[370467739,1752031846533,-460.0,0.00020547,2]
[370467740,1752031846543,-460.0,0.00020547,2]
[370467741,1752031846553,-460.0,0.00020547,2]
[370467742,1752031846563,-460.0,0.00020547,2]
[370467743,1752031846573,-460.0,0.00020547,2]
[370467744,1752031846583,-506.74,0.00020547,2]
[370467745,1752031846595,-471.17356046,0.00020547,2]
[370467746,1752031846605,-460.0,0.00020547,2]
[370467747,1752031846615,-460.0,0.00020547,2]
[370467748,1752031846626,-151.0,0.00020547,2]
[370467749,1752031846637,-698.68,0.00020547,2]
[370467750,1752031846647,-460.0,0.00020547,2]
[370467751,1752031846658,-151.0,0.00020547,2]
[370467752,1752031846668,-151.0,0.00020547,2]
[370467753,1752031846679,-729.57,0.00020547,2]
[370467754,1752031846689,-327.636252,0.00020547,2]
[370467755,1752031846699,-327.636252,0.00020547,2]
[370467756,1752031846710,-800.18,0.00020547,2]
[370467757,1752031846720,-151.0,0.00020547,2]
[370467758,1752031846729,-2192.26,0.00020547,2]
[370467759,1752031846739,-151.0,0.00020547,2]
[370467760,1752031846750,-151.0,0.00020547,2]
[370467761,1752031846760,-820.58,0.00020547,2]
[370467762,1752031846771,-151.0,0.00020547,2]
[370467763,1752031846781,-1350.23,0.00020547,2]
[370467764,1752031846791,-151.0,0.00020547,2]
[370467765,1752031846801,-460.0,0.00020547,2]
[370467766,1752031846811,-460.0,0.00020547,2]
[370467767,1752031846822,-151.0,0.00020547,2]
[370467768,1752031846832,-153.888293,0.00020547,2]
[370467769,1752031846843,-395.85884626,0.00020547,2]
[370467770,1752031846853,-151.0,0.00020547,2]
[370467771,1752031846863,-460.0,0.00020547,2]
[370467772,1752031846874,-665.45,0.00020547,2]
[370467773,1752031846885,-151.0,0.00020547,2]
[370467774,1752031846895,-552.95,0.00020547,2]
[370467775,1752031846906,-661.99,0.00020547,2]
[370467776,1752031846917,-460.0,0.00020547,2]
[370467777,1752031846928,-552.93,0.00020547,2]
[370467778,1752031846938,-460.0,0.00020547,2]
[370467779,1752031846948,-151.0,0.00020547,2]
[370467780,1752031846957,-151.212964,0.00020547,2]
[370467781,1752031846967,-151.0,0.00020547,2]
[370467782,1752031846977,-151.0,0.00020547,2]
[370467783,1752031846991,-151.0,0.00020547,2]
[370467784,1752031847000,-159.439594,0.00020547,2]
[370467785,1752031847010,-460.0,0.00020547,2]
[370467786,1752031847021,-1397.17,0.00020547,2]
[370467787,1752031847031,-1468.45,0.00020547,2]
[370467788,1752031847041,-608.49477014,0.00020547,2]
[370467789,1752031847053,-151.985623,0.00020547,2]
[370467790,1752031847064,-200.208506,0.00020547,2]
[370467791,1752031847073,-1275.68,0.00020547,2]
[370467792,1752031847084,-200.208506,0.00020547,2]
[370467793,1752031847095,-507.42,0.00020547,2]